bitfinex/quotes_ETHUSD_20250411
["timestamp","ask_amount","ask_price","bid_price","bid_amount"]
[1744340662005,7.051,1535.4,1535.2,7.12219306]
[1744340662203,7.051,1535.4,1535.1,13.02802]
[1744340662367,7.051,1535.4,1535.1,6.51399]
[1744340662568,7.29317,1535.3,1534.8,7.28056]
[1744340662808,0.55,1535.2,1534.8,13.79591]
[1744340663305,7.06419,1535.2,1534.9,0.97355489]
[1744340663510,7.06419,1535.2,1534.9,0.36508308]
[1744340663665,1.3295,1535.0,1534.9,0.36508308]
[1744340663870,1.3295,1535.0,1534.8,0.60859956]
[1744340665075,14.11308,1534.9,1534.8,0.60859956]
[1744340665279,14.11308,1534.9,1534.5,7.12518956]
[1744340665790,14.11308,1534.9,1534.6,0.60859956]
[1744340665990,9.738742,1534.9,1534.6,7.12494956]
[1744340666190,7.598,1534.9,1534.6,7.12494956]
[1744340666417,7.048,1534.9,1534.6,7.12494956]
[1744340666576,7.048,1534.9,1534.7,7.12439956]
[1744340667014,7.048,1534.9,1534.6,6.51635]
[1744340667512,7.048,1534.9,1534.7,6.5159]
[1744340667677,7.048,1534.9,1534.7,13.03162]
[1744340667877,7.048,1534.9,1534.8,6.5155]
[1744340668111,7.8126,1535.2,1534.9,6.51493]
[1744340668298,6.51253,1535.5,1535.0,6.51441]
[1744340668510,0.7646,1535.4,1535.1,6.51404]
[1744340668684,3.7646,1535.4,1535.1,6.51404]
[1744340669012,0.7646,1535.4,1535.1,6.51404]
[1744340669205,3.7646,1535.4,1535.1,6.51404]
[1744340669716,0.55,1535.3,1535.1,6.51404]
[1744340670220,0.55,1535.3,1535.0,6.51459]
[1744340670522,0.55,1535.3,1535.1,0.60830609]
[1744340671322,4.459,1535.3,1535.1,0.60830609]
[1744340671533,0.55,1535.3,1535.1,0.60830609]
[1744340673620,0.55,1535.3,1535.1,7.12249609]
[1744340674310,0.55,1535.3,1535.1,6.51419]
[1744340674699,3.0,1535.4,1535.1,6.51419]
[1744340674902,3.0,1535.4,1535.0,6.51463]
[1744340675221,1.3146,1535.3,1535.1,0.608198]
[1744340676313,1.3146,1535.3,1535.1,7.122428]
[1744340676826,1.3146,1535.3,1535.1,6.51423]
[1744340678432,1.3146,1535.3,1535.0,6.51449]
[1744340678594,1.3146,1535.3,1535.0,6.51459]
[1744340678800,1.3146,1535.3,1535.1,0.60820413]
[1744340679042,11.25973,1535.3,1535.1,0.60820413]
[1744340679200,17.77346,1535.3,1535.1,0.60820413]
[1744340679415,17.77346,1535.3,1534.9,0.60820413]
[1744340679601,4.74606,1535.3,1534.9,7.12321413]
[1744340679799,4.74606,1535.3,1535.0,0.60820413]
[1744340680105,10.82883,1535.1,1535.0,0.60820413]
[1744340680318,17.87683,1535.1,1534.8,0.60820413]
[1744340680720,10.82883,1535.1,1534.8,0.60820413]
[1744340680916,3.7646,1535.4,1534.9,0.7529]
[1744340681140,3.7646,1535.4,1535.1,6.51408]
[1744340683035,3.7646,1535.4,1535.0,13.0291]
[1744340683203,3.7646,1535.4,1535.1,0.60830037]
[1744340684401,3.7646,1535.4,1535.1,7.12246037]
[1744340684800,3.7646,1535.4,1535.1,6.51416]
[1744340685417,3.7646,1535.4,1535.0,13.02891]
[1744340685615,3.7646,1535.4,1535.1,0.60825875]
[1744340686933,0.55,1535.3,1535.1,0.60825875]
[1744340687351,0.55,1535.3,1535.0,0.60825875]
[1744340688249,0.55,1535.3,1535.0,7.12272875]
[1744340688943,0.55,1535.3,1535.1,0.60825875]
[1744340690214,3.7646,1535.4,1535.1,7.12221875]
[1744340690415,3.7646,1535.4,1535.1,13.63626875]
[1744340690639,3.7646,1535.4,1535.1,7.12221875]
[1744340690808,3.7646,1535.4,1535.2,0.60825875]
[1744340691649,7.6736,1535.4,1535.2,0.60825875]
[1744340691831,3.7646,1535.4,1535.2,0.60825875]
[1744340693949,3.7646,1535.4,1535.1,0.60825875]
[1744340694747,3.7646,1535.4,1535.1,7.12244875]
[1744340695147,3.7646,1535.4,1535.1,6.51419]
[1744340695619,10.27764,1535.4,1535.2,0.60875122]
[1744340696323,10.27764,1535.4,1535.1,0.60875122]
[1744340696722,10.27764,1535.4,1535.2,0.60875122]
[1744340697245,10.27764,1535.4,1535.1,0.60875122]
[1744340697725,10.27764,1535.4,1535.2,0.60875122]
[1744340698047,3.7646,1535.4,1535.0,6.51448]
[1744340698262,3.7646,1535.4,1535.1,6.87971643]
[1744340699247,3.7646,1535.4,1535.1,0.36563643]
[1744340699623,3.7646,1535.4,1535.2,0.6094473]
[1744340700143,7.06257,1535.5,1535.1,13.39374643]
[1744340700444,3.55,1535.5,1535.2,6.51375]
[1744340700974,3.55,1535.5,1535.3,0.6094161]
[1744340701180,0.799,1535.8,1535.5,6.51249]
[1744340701461,0.799,1536.2,1535.6,7.1213129]
[1744340701636,7.842,1536.4,1536.1,6.50961]
[1744340701845,7.043,1536.4,1536.2,7.1186429]
[1744340702042,7.7473,1536.4,1536.2,0.6092429]
[1744340702214,0.55,1536.3,1536.0,13.02039]
[1744340702413,7.7473,1536.4,1536.1,6.50989]
[1744340702615,7.7473,1536.4,1536.2,6.50954]
[1744340702832,7.043,1536.4,1536.3,6.50914]
[1744340703440,56.656,1536.6,1536.4,6.50835]
[1744340703657,0.799,1536.6,1536.2,7.26603]
[1744340703862,0.799,1536.6,1536.2,13.77539]
[1744340704175,0.55,1536.5,1536.2,13.77539]
[1744340704461,0.55,1536.5,1536.2,6.50923]
[1744340704667,0.9849,1536.5,1536.1,12.56996]
[1744340704958,7.4934,1536.5,1536.1,12.56998]
[1744340705846,0.9849,1536.5,1536.2,6.50951]
[1744340706162,0.9849,1536.5,1536.1,12.56998]
[1744340706320,0.9849,1536.5,1536.1,19.0798]
[1744340706522,0.9849,1536.5,1536.1,6.50982]
[1744340707223,7.043,1536.7,1536.4,6.50849]
[1744340708048,7.043,1536.7,1536.3,0.7568]
[1744340708049,3.799,1536.8,1536.5,6.50796]
[1744340708258,0.799,1536.8,1536.5,6.50796]
[1744340708435,0.799,1536.8,1536.5,13.01606]
[1744340708633,1.1789,1536.8,1536.5,13.01606]
[1744340708833,1.1789,1536.8,1536.5,6.50796]
[1744340709063,3.799,1536.6,1536.1,13.32676]
[1744340709270,0.55,1536.5,1536.1,7.26658]
[1744340709472,0.55,1536.5,1536.1,13.77633]
[1744340709642,1.635714,1536.5,1536.1,13.77633]
[1744340710066,1.635714,1536.5,1536.1,7.26655]
[1744340710268,1.635714,1536.5,1535.9,6.06]
[1744340710269,0.55,1536.3,1535.9,6.8168]
[1744340710469,0.55,1536.3,1536.1,6.50973]
[1744340710652,0.799,1536.4,1536.2,6.50956]
[1744340711036,0.799,1536.4,1536.1,6.50973]
[1744340711237,0.799,1536.4,1536.2,6.50938]
[1744340712397,0.7795,1536.8,1536.3,6.50914]
[1744340712670,3.7795,1536.8,1536.5,6.50809]
[1744340712873,5.1543309,1536.8,1536.5,13.01618]
[1744340713173,0.7795,1536.8,1536.6,6.50781]
[1744340713632,0.7795,1536.8,1536.6,6.5077]
[1744340713831,7.04,1536.9,1536.7,6.50745]
[1744340714075,7.04,1536.9,1536.6,7.27454]
[1744340714274,0.55,1536.8,1536.6,6.50784]
[1744340714443,0.55,1536.8,1536.6,6.50771]
[1744340714774,7.04,1536.9,1536.7,6.50745]
[1744340715275,63.6745,1537.2,1536.7,0.7667]
[1744340715664,63.6745,1537.2,1536.9,6.50633]
[1744340716393,3.03694999,1537.3,1537.0,6.50611]
[1744340716600,0.55,1537.2,1537.0,6.50611]
[1744340716977,0.55,1537.2,1537.0,6.50595]
[1744340717182,7.07594999,1537.3,1537.1,6.50535]
[1744340717488,0.03694999,1537.3,1537.2,6.50533]
[1744340718097,0.03694999,1537.3,1537.2,7.27203]
[1744340720305,0.03694999,1537.3,1537.2,16.26083896]
[1744340720605,9.99e-06,1537.3,1537.2,19.26083896]
[1744340720806,9.99e-06,1537.3,1537.2,26.29683896]
[1744340721709,7.036,1537.9,1537.8,6.50279]
[1744340721919,5.92880896,1538.1,1537.6,12.56359]
[1744340722078,0.55,1537.9,1537.6,19.06703]
[1744340722285,0.55,1537.9,1537.6,6.06]
[1744340722908,0.55,1537.9,1537.6,12.56344]
[1744340723067,1.3072409,1538.0,1537.6,6.06]
[1744340723068,0.71436,1538.0,1537.6,6.06]
[1744340723410,7.134,1538.4,1538.0,6.50185]
[1744340723712,3.0,1538.3,1538.0,6.50185]
[1744340724011,0.55,1538.2,1537.8,19.06539]
[1744340724182,0.55,1538.2,1537.9,6.50235]
[1744340724877,0.55,1538.2,1537.8,6.06]
[1744340725076,1.3295,1538.0,1537.8,6.06]
[1744340725387,1.3295,1538.0,1537.6,13.00682]
[1744340725588,1.3295,1538.0,1537.7,6.50304]
[1744340725798,0.7795,1538.0,1537.7,6.50304]
[1744340725972,0.7795,1538.0,1537.7,6.503]
[1744340726179,0.7795,1538.0,1537.7,13.00599]
[1744340726387,0.7795,1538.0,1537.7,13.00601]
[1744340726588,0.7795,1538.0,1537.7,6.50299]
[1744340727114,0.7795,1538.0,1537.8,6.50278]
[1744340727436,0.7795,1538.0,1537.7,6.50299]
[1744340728083,0.7795,1538.0,1537.8,6.5026]
[1744340728303,7.029,1538.1,1537.8,13.0052]
[1744340729019,7.029,1538.1,1537.8,6.5026]
[1744340729203,7.029,1538.1,1537.8,13.00515]
[1744340729586,7.029,1538.1,1537.9,6.50229]
[1744340729907,0.55,1538.1,1537.7,6.50317]
[1744340730109,0.55,1538.1,1537.7,13.00614]
[1744340730419,0.55,1538.1,1537.7,6.50297]
[1744340730719,7.0516,1538.1,1537.7,6.50297]
[1744340731022,0.55,1538.1,1537.7,13.00596]
[1744340731237,0.55,1538.1,1537.8,6.5027]
[1744340731525,0.55,1538.1,1537.8,13.00535]
[1744340731721,0.55,1538.1,1537.8,6.50265]
[1744340732021,8.6309783,1538.1,1537.9,0.60822323]
[1744340732221,8.6309783,1538.1,1537.7,6.50316]
[1744340732396,0.55,1538.1,1537.8,6.50256]
[1744340732600,0.55,1538.1,1537.8,13.59489785]
[1744340732811,7.7934,1538.2,1537.9,6.50236]
[1744340733024,0.7664,1538.2,1537.9,6.50236]
[1744340733388,0.7664,1538.2,1538.0,0.58977785]
[1744340733927,0.7664,1538.2,1538.0,7.09168785]
[1744340734617,0.8664,1538.4,1538.1,13.00298]
[1744340734992,0.8664,1538.4,1538.1,6.50149]
[1744340735191,0.8664,1538.4,1538.2,0.58752762]
[1744340735392,14.14604141,1538.4,1537.9,6.5023]
[1744340735623,0.7664,1538.0,1537.7,6.50297]
[1744340736426,0.55,1537.9,1537.5,12.56402]
[1744340736615,0.55,1537.9,1537.5,6.06]
[1744340736811,0.55,1537.9,1537.6,6.50364]
[1744340736985,7.05237,1537.9,1537.5,12.56403]
[1744340737189,7.834247,1537.9,1537.5,13.00789]
[1744340737387,1.331877,1537.9,1537.5,6.50386]
[1744340737593,1.331877,1537.9,1537.4,0.7966]
[1744340737831,0.55,1537.9,1537.6,6.50348]
[1744340738020,7.05262,1537.9,1537.5,6.50386]
[1744340738334,13.55534,1537.9,1537.5,6.50386]
[1744340738535,7.05262,1537.9,1537.5,6.50386]
[1744340739043,7.05341,1537.7,1537.3,6.50483]
[1744340739336,7.05341,1537.7,1537.1,6.50574]
[1744340739337,7.05408,1537.5,1537.1,6.50574]
[1744340739494,0.7664,1537.6,1537.0,0.7966]
[1744340739830,0.7664,1537.6,1537.3,6.50478]
[1744340740197,0.55,1537.5,1537.0,0.7966]
[1744340740532,0.55,1537.5,1537.2,6.50518]
[1744340740739,0.55,1537.5,1537.1,7.09321762]
[1744340740942,7.05422,1537.5,1537.1,13.01122]
[1744340741232,7.05422,1537.5,1537.2,0.58752762]
[1744340741540,7.05422,1537.5,1537.1,13.01114]
[1744340741735,7.05448,1537.4,1537.3,0.58752762]
[1744340741940,6.50492,1537.3,1537.0,6.50613]
[1744340742320,0.55,1537.3,1537.0,6.50613]
[1744340742502,7.05498,1537.3,1536.9,6.50646]
[1744340742700,0.55,1537.3,1536.8,0.7741]
[1744340743001,0.55,1537.5,1537.3,6.50491]
[1744340743415,0.55,1537.5,1537.2,6.50531]
[1744340743602,7.05415,1537.5,1537.1,6.50571]
[1744340743803,0.55,1537.3,1536.9,13.78705]
[1744340744000,7.05496,1537.3,1536.9,13.78705]
[1744340744200,7.05496,1537.3,1536.9,13.01295]
[1744340744428,7.05496,1537.3,1537.0,0.60560972]
[1744340744632,0.55,1537.1,1537.0,0.60560972]
[1744340744802,0.55,1537.1,1536.9,7.11218972]
[1744340745208,0.816,1537.2,1537.0,0.60560972]
[1744340745434,0.55,1537.3,1537.0,7.11158972]
[1744340745619,3.816,1537.4,1537.2,6.50533]
[1744340746244,7.843,1537.6,1537.3,6.50482]
[1744340746446,3.0,1537.5,1537.3,6.50482]
[1744340746745,3.0,1537.5,1537.2,6.50533]
[1744340746952,3.0,1537.5,1537.2,13.01047]
[1744340747107,3.0,1537.5,1537.2,6.50514]
[1744340747940,9.50429,1537.5,1537.1,6.5057]
[1744340748144,7.05451,1537.4,1537.0,7.28016]
[1744340748351,13.55932,1537.4,1537.2,0.60588667]
[1744340748507,0.816,1537.3,1537.1,0.60588667]
[1744340750753,0.55,1537.2,1537.1,0.60588667]
[1744340750918,7.05533,1537.2,1537.1,0.60588667]
[1744340751327,7.05533,1537.2,1536.8,13.01385]
[1744340751328,7.05533,1537.2,1536.9,7.11245667]
[1744340751925,7.05533,1537.2,1536.9,6.50657]
[1744340753444,0.55,1537.2,1536.9,6.50657]
[1744340753656,6.50576,1537.1,1536.7,13.78882]
[1744340753868,7.05566,1537.2,1536.8,6.50702]
[1744340754077,7.05566,1537.2,1536.8,13.01387]
[1744340754569,13.56121,1537.2,1536.8,6.50685]
[1744340754968,0.55,1537.2,1536.9,6.50636]
[1744340755144,7.32092,1537.3,1537.0,6.50597]
[1744340755342,9.50457,1537.4,1537.1,6.50571]
[1744340755544,3.0,1537.4,1537.1,6.50571]
[1744340755745,9.50477,1537.4,1537.0,7.28019]
[1744340756078,9.50477,1537.4,1537.1,6.50569]
[1744340756375,9.50477,1537.4,1537.2,0.5477757]
[1744340756736,9.50477,1537.4,1537.0,13.78607]
[1744340756931,10.05477,1537.4,1537.3,0.5477757]
[1744340757161,10.05477,1537.4,1537.0,7.28008]
[1744340757374,6.50495,1537.3,1537.0,7.28008]
[1744340757546,10.05477,1537.4,1537.0,7.28008]
[1744340757732,10.05477,1537.4,1537.1,7.11104966]
[1744340758232,15.90911,1537.4,1537.1,0.60532966]
[1744340758555,6.66972,1537.5,1537.1,6.50543]
[1744340758760,12.52359,1537.5,1537.1,6.50543]
[1744340759150,6.66972,1537.5,1537.1,13.01104]
[1744340759468,0.816,1537.5,1537.2,6.505]
[1744340760145,6.66968,1537.5,1537.2,6.50532]
[1744340760557,6.66968,1537.5,1537.2,13.01047]
[1744340760873,0.55,1537.6,1537.3,6.50471]
[1744340761225,0.55,1537.6,1537.3,13.00947]
[1744340761449,0.55,1537.6,1537.3,13.76407]
[1744340762127,0.55,1537.6,1537.4,6.50443]
[1744340762326,0.55,1537.6,1537.3,13.76426]
[1744340762772,0.7854,1537.7,1537.4,6.50435]
[1744340763070,6.63835,1537.7,1537.4,6.50434]
[1744340763565,0.7854,1537.7,1537.4,13.00859]
[1744340763867,13.66057,1537.9,1537.5,6.50379]
[1744340764170,0.7854,1537.9,1537.7,6.50301]
[1744340764371,5.85145,1538.1,1537.7,13.00606]
[1744340764372,6.63685,1538.1,1537.7,13.00606]
[1744340764572,3.0,1538.0,1537.7,6.50301]
[1744340764731,8.8519,1538.0,1537.7,6.50301]
[1744340765372,3.0,1538.0,1537.7,13.00601]
[1744340765829,5.85219,1537.9,1537.5,12.56405]
[1744340766037,7.21196,1537.8,1537.5,12.56405]
[1744340766231,13.06476,1537.8,1537.5,6.06]
[1744340766548,6.40327,1537.6,1537.5,6.06]
[1744340766735,0.55,1537.6,1537.3,6.50485]
[1744340767078,0.55,1537.6,1537.3,13.00956]
[1744340767255,0.55,1537.6,1537.4,7.11172144]
[1744340767435,0.55,1537.6,1537.4,7.11164144]
[1744340767636,0.55,1537.6,1537.5,0.60732144]
[1744340768046,6.66194,1537.8,1537.5,7.11135144]
[1744340768269,6.40296,1537.7,1537.5,0.60732144]
[1744340768472,5.85327,1537.6,1537.5,0.60732144]
[1744340768662,0.55,1537.5,1537.3,0.60732144]
[1744340769183,1.3594,1537.5,1537.3,0.60732144]
[1744340769359,5.85291,1537.7,1537.4,7.47672214]
[1744340769360,6.40291,1537.7,1537.4,7.47672214]
[1744340769561,0.8094,1537.7,1537.4,7.47672214]
[1744340769765,0.8094,1537.7,1537.5,0.60732144]
[1744340770270,1.3594,1537.7,1537.6,0.49484867]
[1744340770474,7.21229,1537.7,1537.6,0.49484867]
[1744340770879,1.3594,1537.7,1537.6,0.49484867]
[1744340771038,12.87462,1537.8,1537.6,0.49484867]
[1744340771039,7.022,1537.8,1537.6,0.49484867]
[1744340771244,9.66159,1537.9,1537.6,0.49484867]
[1744340771878,0.55,1537.8,1537.6,0.49484867]
[1744340772077,6.40257,1537.8,1537.6,0.49484867]
[1744340772375,12.25541,1537.8,1537.4,6.50442]
[1744340772578,5.415739,1537.9,1537.3,6.50482]
[1744340772579,1.3479,1537.6,1537.3,6.50482]
[1744340772779,10.20119,1537.6,1537.5,0.60814401]
[1744340772966,12.48936693,1537.6,1537.4,0.60814401]
[1744340773171,4.3479,1537.6,1537.4,0.60814401]
[1744340773482,4.3479,1537.6,1537.3,6.50477]
[1744340773783,0.55,1537.6,1537.4,0.60814401]
[1744340774079,9.40289,1537.7,1537.4,0.60814401]
[1744340774388,0.55,1537.5,1537.2,13.01051]
[1744340774586,0.55,1537.5,1537.3,6.5049]
[1744340774794,3.55,1537.7,1537.4,7.29156]
[1744340774946,0.55,1537.6,1537.5,0.60817697]
[1744340775459,0.7979,1537.8,1537.4,0.36489536]
[1744340775779,3.7979,1537.8,1537.5,6.86875536]
[1744340775947,9.65042,1537.8,1537.5,0.36489536]
[1744340776147,0.55,1537.7,1537.5,0.36489536]
[1744340776779,0.55,1537.7,1537.4,6.86937536]
[1744340776984,0.55,1537.7,1537.4,6.86921536]
[1744340777357,0.55,1537.7,1537.5,0.60806335]
[1744340777743,3.7979,1537.8,1537.5,0.60806335]
[1744340777950,3.7979,1537.8,1537.5,13.61582335]
[1744340778256,3.0,1537.8,1537.6,7.11163335]
[1744340778459,3.0,1537.8,1537.6,13.61507335]
[1744340778674,3.0,1537.8,1537.6,13.00701]
[1744340778978,0.7979,1538.0,1537.7,6.50306]
[1744340779168,0.7979,1538.0,1537.7,13.00606]
[1744340779366,0.7979,1538.0,1537.8,6.50271]
[1744340779576,0.7979,1538.2,1537.8,13.79239]
[1744340779880,0.7979,1538.2,1537.9,6.50227]
[1744340780079,0.55,1538.1,1537.9,6.50227]
[1744340780254,0.7979,1538.2,1537.9,6.50227]
[1744340780455,7.99666693,1538.2,1537.8,0.7871]
[1744340780653,7.99666693,1538.2,1537.6,7.29068]
[1744340780654,0.7979,1537.9,1537.6,7.29068]
[1744340780977,0.55,1537.8,1537.5,7.29102]
[1744340781155,0.55,1537.8,1537.5,13.79494]
[1744340781357,0.55,1537.8,1537.6,6.50357]
[1744340781684,0.55,1537.8,1537.5,7.29102]
[1744340781859,6.40256,1537.8,1537.4,12.5643]
[1744340782061,0.55,1537.8,1537.4,19.06858]
[1744340782255,10.12269,1537.8,1537.4,6.50428]
[1744340783448,0.55,1537.6,1537.3,7.29194]
[1744340783759,0.55,1537.6,1537.3,6.5047]
[1744340783962,6.40351,1537.6,1537.4,0.60677207]
[1744340784159,1.3479,1537.5,1537.4,0.60677207]
[1744340784372,1.3479,1537.5,1537.2,7.11206207]
[1744340784685,0.55,1537.5,1537.3,6.50483]
[1744340785003,0.55,1537.5,1537.3,7.11160207]
[1744340785371,0.55,1537.5,1537.4,0.49513445]
[1744340786354,0.55,1537.5,1537.2,13.01024]
[1744340786566,0.55,1537.5,1537.4,0.49513445]
[1744340786789,0.55,1537.5,1537.2,13.01024]
[1744340786989,0.55,1537.5,1537.4,0.49513445]
[1744340787649,0.55,1537.5,1537.2,13.01024]
[1744340787845,0.55,1537.5,1537.3,0.49513445]
[1744340789554,0.55,1537.5,1537.1,13.79825]
[1744340789759,0.55,1537.5,1537.4,0.49513445]
[1744340789972,0.55,1537.5,1537.2,0.97142225]
[1744340790183,0.55,1537.5,1537.4,0.49513445]
[1744340790388,0.55,1537.6,1537.2,6.86941574]
[1744340790687,0.55,1537.6,1537.2,13.01025]
[1744340790859,0.55,1537.6,1537.3,1.10230756]
[1744340791600,0.55,1537.6,1537.3,0.49513445]
[1744340791913,2.155396,1537.6,1537.3,0.49513445]
[1744340792079,0.55,1537.4,1537.3,0.49513445]
[1744340792279,0.55,1537.4,1537.0,13.81304]
[1744340792604,0.55,1537.4,1537.1,0.49576278]
[1744340792804,0.55,1537.4,1537.1,1.46732541]
[1744340792981,10.125246,1537.4,1537.1,1.46732541]
[1744340793298,10.125246,1537.4,1537.1,0.86009863]
[1744340793603,10.125246,1537.4,1537.1,0.49576278]
[1744340794397,4.270996,1537.4,1537.1,0.49576278]
[1744340794604,3.55,1537.4,1537.1,0.49576278]
[1744340794803,3.55,1537.4,1537.2,0.60715764]
[1744340795306,3.55,1537.4,1537.3,0.49576278]
[1744340795673,3.55,1537.4,1537.1,7.11284764]
[1744340795888,3.55,1537.4,1537.2,0.49576278]
[1744340796201,3.55,1537.4,1537.1,6.50569]
[1744340796400,3.55,1537.4,1537.3,0.49576278]
[1744340796600,3.0,1537.4,1537.2,0.607163]
[1744340796805,3.0,1537.4,1537.3,0.49576278]
[1744340798200,3.0,1537.4,1537.1,13.01126]
[1744340798404,3.0,1537.4,1537.3,0.49576278]
[1744340798596,3.0,1537.4,1537.1,13.01126]
[1744340798905,3.0,1537.4,1537.2,0.60721402]
[1744340799101,3.0,1537.4,1537.3,0.49576278]
[1744340800115,3.0,1537.4,1537.1,13.01126]
[1744340800402,3.0,1537.4,1537.3,0.49576278]
[1744340800608,3.0,1537.4,1537.2,0.60729072]
[1744340800907,3.0,1537.4,1537.3,0.49576278]
[1744340801474,3.0,1537.4,1537.1,13.01126]
[1744340801792,3.0,1537.4,1537.2,0.49576278]
[1744340802201,3.0,1537.4,1537.1,13.01114]
[1744340802403,3.0,1537.4,1537.3,0.49576278]
[1744340802572,3.0,1537.4,1537.2,1.47038737]
[1744340802900,3.0,1537.4,1537.3,0.49861833]
[1744340803602,3.0,1537.4,1537.1,6.50557]
[1744340803810,0.8061,1537.5,1537.3,0.49861833]
[1744340803981,0.55,1537.5,1537.3,6.5049]
[1744340804309,0.8235,1537.6,1537.4,0.49861833]
[1744340804483,3.8235,1537.7,1537.4,0.49861833]
[1744340804679,3.8235,1537.7,1537.5,0.60738816]
[1744340805005,0.8235,1537.7,1537.5,0.60738816]
[1744340805203,4.3735,1537.7,1537.6,0.49861833]
[1744340805579,7.8405,1537.9,1537.6,0.49861833]
[1744340805997,0.55,1537.8,1537.6,0.49861833]
[1744340806194,19.54519,1537.9,1537.6,0.49861833]
[1744340806406,13.6928,1537.9,1537.6,0.49861833]
[1744340806714,0.55,1537.8,1537.6,0.49861833]
[1744340807279,8.41222,1537.8,1537.6,0.49861833]
[1744340807535,14.26507,1537.8,1537.3,7.33051]
[1744340807681,14.26507,1537.8,1537.7,0.49861833]
[1744340807881,14.26507,1537.8,1537.3,13.83524]
[1744340808192,14.26507,1537.8,1537.4,0.49861833]
[1744340808403,14.26507,1537.8,1537.5,0.6073824]
[1744340808919,14.26507,1537.8,1537.6,0.49861833]
[1744340809298,8.41222,1537.8,1537.4,6.50448]
[1744340809488,0.55,1537.8,1537.5,0.49861833]
[1744340809683,6.40258,1537.8,1537.5,0.49861833]
[1744340809883,13.69266,1537.9,1537.5,7.00259833]
[1744340810190,7.8405,1537.9,1537.5,7.00259833]
[1744340810387,7.8405,1537.9,1537.5,13.50647833]
[1744340810582,7.8405,1537.9,1537.6,7.11151258]
[1744340810780,0.55,1537.8,1537.6,0.60788258]
[1744340810983,0.55,1537.8,1537.7,0.49747591]
[1744340811718,0.55,1537.8,1537.5,6.50386]
[1744340812020,0.55,1537.8,1537.6,0.49747591]
[1744340813219,0.55,1537.8,1537.6,7.00109591]
[1744340813399,0.55,1537.8,1537.6,7.82689591]
[1744340813596,6.40252,1537.8,1537.6,0.49747591]
[1744340813796,7.24157,1537.8,1537.6,0.49747591]
[1744340814003,13.09437,1537.8,1537.3,13.39064]
[1744340814199,13.09437,1537.8,1537.7,0.49747591]
[1744340814411,13.09437,1537.8,1537.4,0.60790627]
[1744340814587,6.40343,1537.6,1537.4,0.60790627]
[1744340814792,0.8235,1537.5,1537.4,0.60790627]
[1744340815126,1.3735,1537.6,1537.4,0.49564816]
[1744340815827,1.3735,1537.6,1537.4,7.00008816]
[1744340816026,3.0,1537.7,1537.4,6.99995816]
[1744340816334,6.909,1537.7,1537.5,0.60784937]
[1744340816529,3.0,1537.7,1537.5,0.60784937]
[1744340816717,3.55,1537.7,1537.6,0.49650488]
[1744340817916,3.55,1537.7,1537.4,6.50431]
[1744340818129,3.55,1537.7,1537.5,0.49650488]
[1744340819131,3.55,1537.7,1537.3,13.00974]
[1744340819429,3.55,1537.7,1537.6,0.49650488]
[1744340819905,3.55,1537.7,1537.3,13.00974]
[1744340820230,3.55,1537.7,1537.4,1.10437556]
[1744340820935,0.8046,1537.5,1537.4,0.49650488]
[1744340821292,6.65826,1537.5,1537.3,0.60787014]
[1744340821505,0.55,1537.4,1537.3,0.60787014]
[1744340821729,9.40403,1537.4,1537.3,0.60787014]
[1744340821899,5.85455,1537.3,1537.1,0.60787014]
[1744340822420,0.55,1537.2,1537.1,0.60787014]
[1744340822620,6.40494,1537.2,1537.0,6.31414802]
[1744340822790,7.20978,1537.1,1537.0,6.31414802]
[1744340823343,13.1278304,1537.1,1537.0,6.31414802]
[1744340823496,13.1278304,1537.1,1536.7,9.23200543]
[1744340823497,9.40573,1537.0,1536.7,6.31414802]
[1744340823818,6.40632,1536.8,1536.7,6.31414802]
[1744340824423,14.60996434,1536.8,1536.7,6.31414802]
[1744340826228,15.82767916,1536.8,1536.7,6.31414802]
[1744340827006,15.82767916,1536.8,1536.0,10.6896905]
[1744340827007,6.66216,1536.5,1536.0,6.51023]
[1744340827209,7.8166,1536.5,1535.9,0.8311]
[1744340827419,7.012,1536.5,1536.2,6.50941]
[1744340827730,3.8046,1536.7,1536.3,6.88958974]
[1744340827932,3.8046,1536.7,1536.3,13.39852974]
[1744340828231,3.8046,1536.7,1536.3,6.88958974]
[1744340828948,3.8046,1536.7,1536.3,0.38070974]
[1744340828949,0.55,1536.4,1536.3,0.38070974]
[1744340829443,0.55,1536.4,1536.1,6.06]
[1744340829444,0.55,1536.4,1536.1,19.07968]
[1744340829739,0.55,1536.4,1536.1,12.56976]
[1744340829946,0.55,1536.4,1536.2,0.38070974]
[1744340830347,0.55,1536.4,1536.1,12.56976]
[1744340830510,0.55,1536.4,1536.3,0.38070974]
[1744340830710,0.55,1536.4,1536.1,12.56976]
[1744340830913,0.55,1536.4,1536.2,0.38070974]
[1744340831112,0.55,1536.4,1536.1,12.56976]
[1744340831421,0.55,1536.4,1536.2,0.38070974]
[1744340831750,0.55,1536.4,1536.1,12.56976]
[1744340831955,0.55,1536.4,1536.3,0.38070974]
[1744340832141,0.55,1536.4,1536.1,6.06]
[1744340832440,0.55,1536.4,1536.3,0.38070974]
[1744340832646,0.55,1536.4,1536.0,13.85168]
[1744340832845,11.104693,1536.4,1536.3,0.38070974]
[1744340833015,13.962863,1536.4,1535.9,6.51078]
[1744340833212,26.8949134,1536.4,1536.3,0.38070974]
[1744340833419,11.71696,1536.3,1535.8,7.28593]
[1744340833623,10.7701,1536.4,1535.8,0.7749]